bitfinex/quotes_ETHUSD_20230111
["timestamp","ask_amount","ask_price","bid_price","bid_amount"]
[1673395538344,18.34192537,1336.7,1336.6,10.0595596]
[1673395538555,18.35392537,1336.7,1336.6,10.0595596]
[1673395538763,21.155067,1336.7,1336.6,10.0595596]
[1673395539103,13.673957,1336.7,1336.6,10.0595596]
[1673395539725,21.155067,1336.7,1336.6,10.0575596]
[1673395539916,20.593767,1336.7,1336.6,10.0595596]
[1673395541191,14.796657,1336.7,1336.6,10.0595596]
[1673395544943,11.99851585,1336.7,1336.6,10.0595596]
[1673395545419,4.51740585,1336.7,1336.6,10.0595596]
[1673395545570,1.68004834,1336.7,1336.6,17.5412196]
[1673395545782,2.8000373,1336.7,1336.6,17.5412196]
[1673395546009,2.8000373,1336.7,1336.6,10.0595596]
[1673395546764,3.91988997,1336.7,1336.6,10.0595596]
[1673395547173,1.68004834,1336.7,1336.6,10.0595596]
[1673395548551,1.12020658,1336.7,1336.6,17.5412196]
[1673395549813,3.98588997,1336.8,1336.6,17.5412196]
[1673395549986,1.12023468,1336.7,1336.6,17.5412196]
[1673395550198,1.12022128,1336.7,1336.6,17.5412196]
[1673395550439,1.12024285,1336.7,1336.6,17.5412196]
[1673395552141,1.12024285,1336.7,1336.6,10.0595596]
[1673395552459,2.80029119,1336.7,1336.6,10.0595596]
[1673395556655,1.12024285,1336.7,1336.6,25.0228796]
[1673395557310,1.68004834,1336.8,1336.6,25.0228796]
[1673395557480,1.12042634,1336.7,1336.6,25.0228796]
[1673395557687,1.68004834,1336.8,1336.6,25.0228796]
[1673395557943,1.12042903,1336.7,1336.6,25.0228796]
[1673395558155,1.68004834,1336.8,1336.6,25.0228796]
[1673395558311,1.12044244,1336.7,1336.6,28.82054024]
[1673395558532,2.86649078,1336.8,1336.6,36.30220024]
[1673395558739,2.80049078,1336.8,1336.6,28.82054024]
[1673395558944,1.12044244,1336.8,1336.6,36.30220024]
[1673395560250,2.80049078,1336.8,1336.6,36.30220024]
[1673395560655,1.12044244,1336.8,1336.6,36.30220024]
[1673395566298,2.91246623,1336.9,1336.6,36.30220024]
[1673395566773,1.23241789,1336.9,1336.6,39.93943558]
[1673395571667,1.23241789,1336.9,1336.6,36.30220024]
[1673395571905,1.23241789,1336.9,1336.6,39.93943558]
[1673395572126,1.23241789,1336.9,1336.6,36.30220024]
[1673395574923,1.23241789,1336.9,1336.6,39.93943558]
[1673395576529,1.23241789,1336.9,1336.6,36.30220024]
[1673395579809,2.91246623,1336.9,1336.6,28.82054024]
[1673395579983,1.23241789,1336.9,1336.6,36.30220024]
[1673395581063,1.23241789,1336.9,1336.6,39.08641312]
[1673395582068,1.23241789,1336.9,1336.6,36.30220024]
[1673395582287,1.23241789,1336.9,1336.6,39.08641433]
[1673395582953,2.91246623,1336.9,1336.6,39.08641433]
[1673395583645,1.23241789,1336.9,1336.6,39.08641433]
[1673395584181,2.91246623,1336.9,1336.6,39.08641433]
[1673395585339,1.79202379,1336.9,1336.6,12.84377369]
[1673395585543,1.29948112,1336.8,1336.6,10.0595596]
[1673395585754,1.29948112,1336.8,1336.6,17.5411796]
[1673395586010,1.12027874,1336.8,1336.6,17.5411796]
[1673395586210,1.12027874,1336.8,1336.6,20.32539369]
[1673395586404,2.80032708,1336.8,1336.6,25.0228396]
[1673395588529,2.80076581,1336.8,1336.6,25.0228396]
[1673395588745,2.80076581,1336.8,1336.6,32.5044996]
[1673395589126,1.68004834,1336.8,1336.6,32.5044996]
[1673395589476,2.80084028,1336.8,1336.6,32.5044996]
[1673395589670,2.80084028,1336.8,1336.6,25.0228396]
[1673395589877,1.68004834,1336.8,1336.6,25.0228396]
[1673395590269,2.80087072,1336.8,1336.6,27.80721174]
[1673395590472,2.80087072,1336.8,1336.6,35.28887174]
[1673395591106,2.80087072,1336.8,1336.6,32.5044996]
[1673395591402,2.80087072,1336.8,1336.6,35.28887851]
[1673395591539,2.80087072,1336.8,1336.6,27.80721264]
[1673395591776,1.12082238,1336.7,1336.6,25.0228396]
[1673395591949,1.12088735,1336.7,1336.6,26.87912791]
[1673395592158,1.12089,1336.7,1336.6,26.87912791]
[1673395592404,2.80094095,1336.8,1336.6,34.36078791]
[1673395592626,2.80094095,1336.8,1336.6,35.2888815]
[1673395592862,2.80094095,1336.8,1336.6,32.5044996]
[1673395593074,2.80094095,1336.8,1336.6,35.28889051]
[1673395594713,1.12115293,1336.7,1336.6,35.28889051]
[1673395594939,1.12115073,1336.7,1336.6,46.26331188]
[1673395595161,9.77035434,1337.0,1336.9,0.93556267]
[1673395595472,9.77235434,1337.0,1336.9,2.79182271]
[1673395595993,1.24885434,1337.0,1336.9,10.27181271]
[1673395596170,0.12555806,1337.0,1336.9,25.29779271]
[1673395597120,1.24685434,1337.0,1336.9,23.44153267]
[1673395600061,1.24685434,1337.0,1336.9,15.96154267]
[1673395601677,0.12555806,1337.0,1336.9,8.48155267]
[1673395601851,1.24685434,1337.0,1336.9,8.48155267]
[1673395603582,1.24685434,1337.0,1336.9,12.27921331]
[1673395603742,0.12555806,1337.0,1336.9,33.12114679]
[1673395603952,0.12555806,1337.0,1336.9,35.90481663]
[1673395604628,0.12555806,1337.0,1336.9,33.12114679]
[1673395605979,0.12555806,1337.0,1336.9,35.90473759]
[1673395606211,0.12555806,1337.0,1336.9,33.12114679]
[1673395607026,0.12555806,1337.0,1336.9,35.90475353]
[1673395608192,0.12555806,1337.0,1336.9,33.12119121]
[1673395609693,0.12555806,1337.0,1336.9,35.9047129]
[1673395609905,0.12555806,1337.0,1336.9,35.90472672]
[1673395610062,0.12755806,1337.0,1336.9,35.90272672]
[1673395610268,0.12755806,1337.0,1336.9,33.12119121]
[1673395610269,0.12555806,1337.0,1336.9,33.12119121]
[1673395611963,0.12555806,1337.0,1336.9,29.58148299]
[1673395612175,0.12555806,1337.0,1336.9,27.23919331]
[1673395615109,1e-08,1337.0,1336.9,27.23919331]
[1673395615368,1e-08,1337.0,1336.9,28.91519331]
[1673395615591,1e-08,1337.0,1336.9,19.75920331]
[1673395615753,1e-08,1337.0,1336.9,27.23919331]
[1673395615958,1e-08,1337.0,1336.9,1.00156267]
[1673395616205,2.20609855,1337.0,1336.9,0.93556267]
[1673395616416,1.08480227,1337.0,1336.9,0.93556267]
[1673395616643,3.58480227,1337.0,1336.9,0.93556267]
[1673395616923,4.70609855,1337.0,1336.9,0.93556267]
[1673395617569,4.70809855,1337.0,1336.9,0.93556267]
[1673395617748,4.70609855,1337.0,1336.9,0.93556267]
[1673395619472,6.38614689,1337.0,1336.9,0.93556267]
[1673395619792,6.38814689,1337.0,1336.9,0.93556267]
[1673395622202,10.02538223,1337.0,1336.9,0.93556267]
[1673395622518,24.14555224,1337.0,1336.9,0.93556267]
[1673395622843,31.62498224,1337.0,1336.9,0.93556267]
[1673395623200,24.14555224,1337.0,1336.9,0.93556267]
[1673395623462,22.4655039,1337.0,1336.9,0.93556267]
[1673395623672,24.14347048,1337.0,1336.9,0.93556267]
[1673395624513,24.14347048,1337.0,1336.7,0.066]
[1673395624725,3.53294632,1336.9,1336.6,17.5411396]
[1673395626253,5.2109129,1336.9,1336.6,17.5411396]
[1673395626520,5.2129129,1336.9,1336.6,17.5411396]
[1673395626724,5.2129129,1336.9,1336.6,10.0595596]
[1673395626725,12.6929829,1336.9,1336.6,10.0595596]
[1673395626976,11.01501632,1336.9,1336.6,10.0595596]
[1673395627512,18.49508632,1336.9,1336.6,10.0595596]
[1673395627668,3.36171887,1336.8,1336.6,10.0595596]
[1673395628034,2.5,1336.8,1336.6,10.0595596]
[1673395628191,20.2370529,1336.9,1336.6,10.0595596]
[1673395628406,2.5,1336.8,1336.6,10.0595596]
[1673395629179,20.2370529,1336.9,1336.6,10.0595596]
[1673395629404,20.1730529,1336.9,1336.6,10.0595596]
[1673395629553,4.51730529,1336.8,1336.6,10.0595596]
[1673395629763,2.5,1336.8,1336.6,10.0595596]
[1673395630606,0.985214,1336.7,1336.6,10.0595596]
[1673395631804,29.86437861,1336.7,1336.6,10.0595596]
[1673395632004,30.42767861,1336.7,1336.6,10.0595596]
[1673395632425,26.79044327,1336.7,1336.6,10.0595596]
[1673395632613,31.03293042,1336.7,1336.6,10.0595596]
[1673395633650,30.47163042,1336.7,1336.6,10.0595596]
[1673395634122,22.99052042,1336.7,1336.6,10.0595596]
[1673395634655,30.47163042,1336.7,1336.6,10.0595596]
[1673395636861,32.149597,1336.7,1336.6,10.0595596]
[1673395637073,30.47163042,1336.7,1336.6,10.0595596]
[1673395637466,30.47163042,1336.7,1336.6,10.05669917]
[1673395642969,29.35303115,1336.7,1336.6,10.05669917]
[1673395643165,30.47163042,1336.7,1336.6,10.05669917]
[1673395643384,29.35303115,1336.7,1336.6,10.05669917]
[1673395648119,29.35303115,1336.7,1336.6,10.05469917]
[1673395648424,29.35303115,1336.7,1336.6,10.05669917]
[1673395650876,30.47163042,1336.7,1336.6,10.05669917]
[1673395651308,28.79163042,1336.7,1336.6,10.05669917]
[1673395654381,30.469597,1336.7,1336.6,10.05669917]
[1673395654574,28.78833132,1336.7,1336.6,10.05669917]
[1673395656326,30.4662979,1336.7,1336.6,10.05669917]
[1673395658221,29.34769863,1336.7,1336.6,10.05669917]
[1673395660037,30.46787981,1336.7,1336.6,10.05669917]
[1673395660247,29.34769863,1336.7,1336.6,10.05669917]
[1673395661535,30.4679401,1336.7,1336.6,10.05669917]
[1673395661740,1.12224147,1336.7,1336.6,17.53835917]
[1673395661952,1.12024147,1336.7,1336.6,10.05669917]
[1673395663001,2.79820805,1336.7,1336.6,10.05669917]
[1673395663581,1.12024147,1336.7,1336.6,10.05669917]
[1673395664750,2.79820805,1336.7,1336.6,10.05669917]
[1673395665407,10.27931805,1336.7,1336.6,10.05669917]
[1673395665731,13.37193813,1336.7,1336.6,10.05669917]
[1673395666046,12.25169666,1336.7,1336.6,10.05669917]
[1673395666207,4.77058666,1336.7,1336.6,10.05669917]
[1673395666419,4.76858666,1336.7,1336.6,10.05669917]
[1673395668992,7.00842829,1336.7,1336.6,10.05669917]
[1673395669151,7.01042829,1336.7,1336.6,10.05669917]
[1673395669786,14.49153829,1336.7,1336.6,10.05669917]
[1673395671039,12.81357171,1336.7,1336.6,10.05669917]
[1673395671399,15.61171286,1336.7,1336.6,10.05669917]
[1673395672176,14.49573635,1336.7,1336.6,10.05669917]
[1673395673189,21.97684635,1336.7,1336.6,10.05669917]
[1673395674774,20.29468171,1336.7,1336.6,10.05669917]
[1673395674984,12.81357171,1336.7,1336.6,10.05669917]
[1673395675218,3.92389043,1336.7,1336.6,10.05669917]
[1673395675444,2.23984163,1336.7,1336.6,10.05669917]
[1673395675751,9.72095163,1336.7,1336.6,10.05669917]
[1673395675964,9.72295163,1336.7,1336.6,10.05669917]
[1673395676538,3.92391191,1336.7,1336.6,10.05669917]
[1673395676754,3.92191191,1336.7,1336.6,10.05669917]
[1673395678031,11.40302191,1336.7,1336.6,10.05669917]
[1673395678223,11.40502191,1336.7,1336.6,10.05669917]
[1673395678682,10.28665869,1336.7,1336.6,10.05669917]
[1673395678904,9.16518028,1336.7,1336.6,10.05669917]
[1673395679154,10.28667806,1336.7,1336.6,10.05669917]
[1673395679434,11.04144433,1336.7,1336.6,10.05286207]
[1673395680779,11.04144433,1336.7,1336.6,11.11510796]
[1673395680992,9.91994655,1336.7,1336.6,11.11510796]
[1673395681528,12.15978818,1336.7,1336.6,11.11510796]
[1673395681705,17.9588279,1336.7,1336.6,11.11510796]
[1673395681918,10.4777179,1336.7,1336.6,11.11510796]
[1673395682578,17.9588279,1336.7,1336.6,11.11510796]
[1673395682914,10.4777179,1336.7,1336.6,11.11510796]
[1673395683958,13.27585905,1336.7,1336.6,11.11510796]
[1673395684149,10.4777179,1336.7,1336.6,11.11510796]
[1673395684485,13.27585905,1336.7,1336.6,11.11510796]
[1673395684638,28.23807905,1336.7,1336.6,11.11510796]
[1673395685491,20.75696905,1336.7,1336.6,11.11510796]
[1673395687794,18.51712742,1336.7,1336.6,11.11510796]
[1673395688041,25.99823742,1336.7,1336.6,11.11510796]
[1673395691923,18.51712742,1336.7,1336.6,11.11510796]
[1673395692987,25.99823742,1336.7,1336.6,11.11510796]
[1673395696043,26.00328463,1336.7,1336.6,11.11510796]
[1673395697296,38.67216507,1336.7,1336.6,11.11510796]
[1673395697510,39.98568408,1336.7,1336.6,11.11310796]
[1673395697712,39.98568408,1336.7,1336.6,11.11510796]
[1673395698303,36.86251126,1336.7,1336.6,11.11510796]
[1673395699664,40.22263327,1336.7,1336.6,11.11510796]
[1673395700668,40.22263327,1336.7,1336.2,8.28998397]
[1673395700669,4.02226333,1336.6,1336.2,0.05678397]
[1673395700888,3.91989992,1336.3,1336.2,0.05678397]
[1673395701193,31.60934779,1336.3,1336.2,0.05678397]
[1673395701402,30.50009065,1336.3,1336.2,0.05678397]
[1673395701563,34.9757962,1336.3,1336.2,0.05678397]
[1673395701774,33.85715342,1336.3,1336.2,0.05678397]
[1673395703375,34.9751518,1336.3,1336.2,0.05678397]
[1673395705291,33.29722393,1336.3,1336.2,0.05678397]
[1673395706319,30.49922555,1336.3,1336.2,0.05678397]
[1673395708345,29.93772555,1336.3,1336.2,0.05678397]
[1673395713167,3.012,1336.3,1336.2,0.05678397]
[1673395713379,9.23760328,1336.4,1336.2,0.05678397]
[1673395713380,1.76641328,1336.4,1336.2,0.05678397]
[1673395713602,19.66599328,1336.4,1336.2,0.05678397]
[1673395713803,28.83905115,1336.4,1336.2,0.05678397]
[1673395713980,27.16112328,1336.4,1336.2,0.05678397]
[1673395714199,35.28563469,1336.4,1336.2,0.05678397]
[1673395714404,33.60770682,1336.4,1336.2,0.05678397]
[1673395714609,35.28563469,1336.4,1336.2,0.05678397]
[1673395715071,33.60770682,1336.4,1336.2,0.05678397]
[1673395717699,35.28563469,1336.4,1336.2,0.05678397]
[1673395717921,3.52856347,1336.3,1336.2,0.05678397]
[1673395718163,18.49524347,1336.3,1336.2,0.05678397]
[1673395718376,18.50724347,1336.3,1336.2,0.05678397]
[1673395719073,25.99058347,1336.3,1336.2,0.05678397]
[1673395720061,34.59192185,1336.3,1336.2,0.05678397]
[1673395720870,33.47392347,1336.3,1336.2,0.05678397]
[1673395721289,34.59192185,1336.3,1336.2,0.05678397]
[1673395723929,34.59192185,1336.3,1336.2,0.05408845]
[1673395725276,36.26984972,1336.3,1336.2,0.05408845]
[1673395731106,35.15185134,1336.3,1336.2,0.05408845]
[1673395732508,36.27052342,1336.3,1336.2,0.05408845]
[1673395733159,35.15185134,1336.3,1336.2,0.05408845]
[1673395733406,27.66851134,1336.3,1336.2,0.05408845]
[1673395733614,8.61449564,1336.3,1336.2,0.05408845]
[1673395734401,16.09783564,1336.3,1336.2,0.05408845]
[1673395735032,17.77576351,1336.3,1336.2,0.05408845]
[1673395735243,10.29242351,1336.3,1336.2,0.05408845]
[1673395737397,9.17326787,1336.3,1336.2,0.05408845]
[1673395737972,11.41316779,1336.3,1336.2,0.05408845]
[1673395738257,18.89650779,1336.3,1336.2,0.05408845]
[1673395738974,26.37984779,1336.3,1336.2,0.05408845]
[1673395739144,31.1296418,1336.3,1336.2,0.05408845]
[1673395740317,29.45171393,1336.3,1336.2,0.05408845]
[1673395740991,31.13204163,1336.3,1336.2,0.05408845]
[1673395741594,29.45171393,1336.3,1336.2,0.05408845]
[1673395743529,14.48503393,1336.3,1336.2,0.05408845]
[1673395743807,16.16557016,1336.3,1336.2,0.05408845]
[1673395743966,14.48503393,1336.3,1336.2,0.05408845]
[1673395744338,21.96837393,1336.3,1336.2,0.05408845]
[1673395744704,29.45171393,1336.3,1336.2,0.05408845]
[1673395744916,33.00370784,1336.3,1336.2,0.05408845]
[1673395745649,33.00370784,1336.3,1336.2,0.05090952]
[1673395745861,30.20383294,1336.3,1336.2,0.05090952]
[1673395747536,33.00370784,1336.3,1336.2,0.05090952]
[1673395747685,30.20383294,1336.3,1336.2,0.05090952]
[1673395747900,33.00370784,1336.3,1336.2,0.05090952]
[1673395748464,30.20383294,1336.3,1336.2,0.05090952]
[1673395750005,33.00370784,1336.3,1336.2,0.05090952]
[1673395751415,31.88425672,1336.3,1336.2,0.05090952]
[1673395751754,30.20383294,1336.3,1336.2,0.05090952]
[1673395751907,29.45171393,1336.3,1336.2,0.05090952]
[1673395754206,32.25158883,1336.3,1336.2,0.05090952]
[1673395759057,30.01168891,1336.3,1336.2,0.05090952]
[1673395761283,32.25285369,1336.3,1336.2,0.05090952]
[1673395761673,30.01168891,1336.3,1336.2,0.05090952]
[1673395765160,30.76380792,1336.3,1336.2,0.05090952]
[1673395765375,34.98957402,1336.3,1336.2,0.05090952]
[1673395765787,34.23745501,1336.3,1336.2,0.05090952]
[1673395766113,30.87760513,1336.3,1336.2,0.05090952]
[1673395766441,54.49461565,1336.3,1336.2,9.52e-06]
[1673395766633,57.49461565,1336.3,1336.2,9.52e-06]
[1673395766843,76.64073466,1336.3,1336.2,9.52e-06]
[1673395767292,73.28088478,1336.3,1336.2,9.52e-06]
[1673395767460,76.64111148,1336.3,1336.2,9.52e-06]
[1673395770190,62.64111148,1336.3,1336.2,9.52e-06]
[1673395770402,76.64111148,1336.3,1336.2,9.52e-06]
[1673395771552,73.28088478,1336.3,1336.2,9.52e-06]
[1673395772609,62.07845449,1336.3,1336.2,9.52e-06]
[1673395772955,61.09633548,1336.3,1336.2,9.52e-06]
[1673395774860,75.09633548,1336.3,1336.2,9.52e-06]
[1673395775229,72.29876577,1336.3,1336.2,9.52e-06]
[1673395775655,75.09615671,1336.3,1336.2,9.52e-06]
[1673395777492,72.29876577,1336.3,1336.2,9.52e-06]
[1673395777816,73.05088478,1336.3,1336.2,9.52e-06]
[1673395779963,72.29876577,1336.3,1336.2,9.52e-06]
[1673395780916,73.05088478,1336.3,1336.2,9.52e-06]
[1673395782729,72.29876577,1336.3,1336.2,9.52e-06]
[1673395782947,73.05088478,1336.3,1336.2,9.52e-06]
[1673395784009,76.41111148,1336.3,1336.2,9.52e-06]
[1673395785693,72.74532036,1336.3,1336.2,9.52e-06]
[1673395785907,75.82231188,1336.3,1336.2,9.52e-06]
[1673395786088,69.38509366,1336.3,1336.2,9.52e-06]
[1673395786289,72.1820023,1336.3,1336.2,9.52e-06]
[1673395786688,75.82127622,1336.3,1336.2,9.52e-06]
[1673395786944,75.06915721,1336.3,1336.2,9.52e-06]
[1673395787129,72.27224857,1336.3,1336.2,9.52e-06]
[1673395787365,57.42989772,1336.3,1336.2,9.52e-06]
[1673395788735,57.43010264,1336.3,1336.2,9.52e-06]
[1673395789105,53.632442,1336.3,1336.2,9.52e-06]
[1673395789368,0.00315767,1336.2,1336.1,0.06076144]
[1673395789577,20.20871134,1336.2,1336.1,0.06076144]
[1673395789752,21.89903437,1336.2,1336.1,0.06076144]
[1673395789960,21.89913593,1336.2,1336.1,0.06076144]
[1673395790185,18.89913593,1336.2,1336.1,0.06076144]
[1673395790594,26.38303593,1336.2,1336.1,0.06076144]
[1673395791457,24.70461134,1336.2,1336.1,0.06076144]
[1673395792825,2.25291134,1336.2,1336.1,0.06076144]
[1673395793065,24.69261134,1336.2,1336.1,0.06076144]
[1673395793247,24.70461134,1336.2,1336.1,0.06076144]
[1673395794583,34.74811311,1336.2,1336.1,0.06076144]
[1673395794793,23.59842199,1336.2,1336.1,0.06076144]
[1673395795116,31.08232199,1336.2,1336.1,0.06076144]
[1673395796630,23.59842199,1336.2,1336.1,0.06076144]
[1673395797644,16.11452199,1336.2,1336.1,0.06076144]
[1673395798705,23.59842199,1336.2,1336.1,0.06076144]
[1673395799963,31.08232199,1336.2,1336.1,0.06076144]
[1673395800177,25.26398566,1336.2,1336.1,0.06076144]
[1673395800370,20.01955614,1336.2,1336.1,0.06076144]
[1673395800587,17.78008566,1336.2,1336.1,0.06076144]
[1673395800826,25.26398566,1336.2,1336.1,0.06076144]
[1673395803783,25.82708437,1336.2,1336.1,0.06076144]
[1673395804017,31.00298081,1336.2,1336.1,0.06076144]
[1673395805149,34.80064145,1336.2,1336.1,0.06076144]
[1673395805459,35.03064145,1336.2,1336.1,0.06076144]
[1673395807721,35.03064145,1336.2,1336.1,1.25150031]
[1673395807974,35.02748378,1336.2,1336.1,1.25150031]
[1673395808149,23.74592314,1336.2,1336.1,1.25150031]
[1673395808364,27.63959644,1336.2,1336.1,1.25150031]
[1673395808624,30.99982314,1336.2,1336.1,1.25150031]
[1673395812039,30.99982314,1336.2,1336.1,1.24858633]
[1673395813504,30.4377291,1336.2,1336.1,1.24858633]
[1673395814148,27.63959644,1336.2,1336.1,1.24858633]
[1673395818173,30.43781601,1336.2,1336.1,1.24858633]
[1673395818622,27.63959644,1336.2,1336.1,1.24858633]
[1673395818996,30.43781428,1336.2,1336.1,1.24858633]
[1673395819259,22.95391428,1336.2,1336.1,1.24858633]
[1673395819447,20.15569644,1336.2,1336.1,1.24858633]
[1673395819658,30.43795348,1336.2,1336.1,1.24858633]
[1673395821538,25.26205704,1336.2,1336.1,1.24858633]
[1673395825943,22.4637,1336.2,1336.1,1.24858633]
[1673395826408,25.26211509,1336.2,1336.1,1.24858633]
[1673395826622,22.4637,1336.2,1336.1,1.24858633]
[1673395827337,25.262008,1336.2,1336.1,1.24858633]
[1673395827737,22.4637,1336.2,1336.1,1.24858633]
[1673395828197,25.26209959,1336.2,1336.1,1.24858633]
[1673395828618,22.4637,1336.2,1336.1,1.24858633]
[1673395828794,25.26206569,1336.2,1336.1,1.24858633]
[1673395828999,30.16056021,1336.2,1336.1,1.24858633]
[1673395829223,27.36219452,1336.2,1336.1,1.24858633]
[1673395831652,30.72242122,1336.2,1336.1,1.24858633]
[1673395833583,31.28402122,1336.2,1336.1,1.24858633]
[1673395834524,31.28402122,1336.2,1336.1,1.19858633]
[1673395835941,35.08168186,1336.2,1336.1,1.19858633]
[1673395836152,35.31168186,1336.2,1336.1,1.19858633]
[1673395836833,38.31168186,1336.2,1336.1,1.19858633]
[1673395837004,41.97747298,1336.2,1336.1,1.19858633]
[1673395837992,38.31168186,1336.2,1336.1,1.19858633]
[1673395839145,41.97747298,1336.2,1336.1,1.19858633]
[1673395839511,38.31168186,1336.2,1336.1,1.19858633]
[1673395840047,41.97747298,1336.2,1336.1,1.19858633]
[1673395840253,34.95145516,1336.2,1336.1,1.19858633]
[1673395840481,38.61724628,1336.2,1336.1,1.19858633]
[1673395840696,38.31142422,1336.2,1336.1,1.19858633]
[1673395843001,27.02986358,1336.2,1336.1,1.19858633]
[1673395843351,34.28376358,1336.2,1336.1,1.19858633]
[1673395849558,30.92379452,1336.2,1336.1,1.19858633]
[1673395849933,33.72419218,1336.2,1336.1,1.19858633]
[1673395851297,30.92379452,1336.2,1336.1,1.19858633]
[1673395851506,33.72437358,1336.2,1336.1,1.19858633]
[1673395854932,33.16277358,1336.2,1336.1,1.19858633]
[1673395856805,30.36219452,1336.2,1336.1,1.19858633]
[1673395857123,33.72216358,1336.2,1336.1,1.19858633]
[1673395858173,33.72216358,1336.2,1336.1,1.19471129]
[1673395860009,34.28376358,1336.2,1336.1,1.19471129]
[1673395860220,33.72216358,1336.2,1336.1,1.19471129]
[1673395863060,34.28201938,1336.2,1336.1,1.19471129]
[1673395864778,35.03413839,1336.2,1336.1,1.19471129]
[1673395865178,31.11431353,1336.2,1336.1,1.19471129]
[1673395865735,34.47458438,1336.2,1336.1,1.19471129]
[1673395866313,31.11431353,1336.2,1336.1,1.19471129]
[1673395866995,33.72250884,1336.2,1336.1,1.19471129]
[1673395871686,33.72194955,1336.2,1336.1,1.19471129]
[1673395873186,41.18540131,1336.2,1336.1,1.19471129]
[1673395873328,38.05564628,1336.2,1336.1,1.19471129]
[1673395873543,34.38985516,1336.2,1336.1,1.19471129]
[1673395874526,34.95145516,1336.2,1336.1,1.19471129]
[1673395874723,38.31093412,1336.2,1336.1,1.19471129]
[1673395875805,34.95145516,1336.2,1336.1,1.19471129]
[1673395877747,38.31059218,1336.2,1336.1,1.19471129]
[1673395881263,37.74899218,1336.2,1336.1,1.19129899]
[1673395885208,34.38985516,1336.2,1336.1,1.19129899]
[1673395885831,33.72111247,1336.2,1336.1,1.19129899]
[1673395887563,26.23721247,1336.2,1336.1,1.19129899]
[1673395887774,13.85481795,1336.2,1336.1,1.19129899]
[1673395888720,0.012,1336.2,1336.1,1.19129899]
[1673395888909,2.7994406,1336.2,1336.1,1.19129899]
[1673395889316,14.9678,1336.2,1336.1,1.19129899]
[1673395889524,14.9798,1336.2,1336.1,1.19129899]
[1673395890149,17.77932502,1336.2,1336.1,1.19129899]
[1673395890513,14.9798,1336.2,1336.1,1.19129899]
[1673395891401,17.77946591,1336.2,1336.1,1.19129899]
[1673395892088,17.77959344,1336.2,1336.1,1.19129899]
[1673395894400,2.81179344,1336.2,1336.1,1.19129899]
[1673395894552,2.79979344,1336.2,1336.1,8.67575899]
[1673395894762,2.79979344,1336.2,1336.1,1.28429899]
[1673395895014,2.79979344,1336.2,1336.1,1.19129899]
[1673395895298,25.81061795,1336.2,1336.1,1.19129899]
[1673395895508,29.44718058,1336.2,1336.1,1.19129899]
[1673395896137,30.00878058,1336.2,1336.1,1.19129899]
[1673395896655,29.44718058,1336.2,1336.1,1.19129899]
[1673395898061,26.08826263,1336.2,1336.1,1.19129899]
[1673395898461,29.44779941,1336.2,1336.1,1.19129899]
[1673395898670,26.08826263,1336.2,1336.1,1.19129899]
[1673395903945,30.00808749,1336.2,1336.1,1.19129899]
[1673395906042,30.00808749,1336.2,1336.1,0.91092417]
[1673395906043,57.07652469,1336.2,1336.1,0.91092417]
[1673395906475,52.4554334,1336.2,1336.1,0.91092417]
[1673395906671,56.37453325,1336.2,1336.1,0.91092417]
[1673395907660,52.4554334,1336.2,1336.1,0.91092417]
[1673395910186,57.07652469,1336.2,1336.1,0.91092417]
[1673395911228,52.4554334,1336.2,1336.1,0.91092417]
[1673395911950,56.36931233,1336.2,1336.1,0.91092417]
[1673395913016,52.4554334,1336.2,1336.1,0.91092417]
[1673395913262,31.27476661,1336.0,1335.9,0.06777474]
[1673395913387,48.68876201,1336.0,1335.9,0.06777474]
[1673395913593,49.44088102,1336.0,1335.9,0.06777474]
[1673395913838,45.78428664,1336.0,1335.9,0.06777474]
[1673395915224,49.44088102,1336.0,1335.9,0.06777474]
[1673395915443,56.25176983,1336.0,1335.9,0.06777474]
[1673395915744,52.59517545,1336.0,1335.9,0.06777474]
[1673395915959,49.24043507,1336.0,1335.9,0.06777474]
[1673395916341,49.2372357,1336.0,1335.9,0.06777474]
[1673395916558,52.89383008,1336.0,1335.9,0.06777474]
[1673395916767,52.91474498,1336.0,1335.9,0.06777474]
[1673395917387,52.61289098,1336.0,1335.9,0.06777474]
[1673395917706,49.2581506,1336.0,1335.9,0.06777474]
[1673395918533,52.91474498,1336.0,1335.9,0.06777474]
[1673395918761,52.61289098,1336.0,1335.9,0.06777474]
[1673395918972,49.2581506,1336.0,1335.9,0.06777474]
[1673395919844,56.26948536,1336.0,1335.9,0.06777474]
[1673395920058,52.61289098,1336.0,1335.9,0.06777474]
[1673395920290,52.052797,1336.0,1335.9,0.06777474]
[1673395921005,51.30067799,1336.0,1335.9,0.06777474]
[1673395921328,39.54401524,1336.0,1335.9,0.06777474]
[1673395921481,39.31401524,1336.0,1335.9,0.06777474]
[1673395921694,27.84834884,1336.0,1335.9,0.06777474]
[1673395921948,26.52516446,1336.0,1335.9,0.06777474]
[1673395925155,31.15648555,1336.0,1335.9,0.06777474]
[1673395927682,26.52516446,1336.0,1335.9,0.06777474]
[1673395927889,24.84834884,1336.0,1335.9,0.06777474]
[1673395932048,27.64299524,1336.0,1335.9,0.06777474]
[1673395932934,25.40719364,1336.0,1335.9,0.06777474]
[1673395936327,22.61254724,1336.0,1335.9,0.06777474]
[1673395936507,26.9838279,1336.0,1335.9,0.06777474]
[1673395937140,30.53300171,1336.0,1335.9,0.06777474]
[1673395937575,31.09068729,1336.0,1335.9,0.06777474]
[1673395939777,31.09068729,1336.0,1335.9,0.0637866]
[1673395940008,30.33856828,1336.0,1335.9,0.0637866]
[1673395941387,30.56856828,1336.0,1335.9,0.0637866]
[1673395942028,31.32068729,1336.0,1335.9,0.0637866]
[1673395942620,27.96594691,1336.0,1335.9,0.0637866]
[1673395942921,31.32068729,1336.0,1335.9,0.0637866]
[1673395943132,27.2138279,1336.0,1335.9,0.0637866]
[1673395945151,27.96594691,1336.0,1335.9,0.0637866]
[1673395945563,30.96594691,1336.0,1335.9,0.0637866]
[1673395947168,34.32068729,1336.0,1335.9,0.0637866]
[1673395949848,34.31724517,1336.0,1335.9,0.0637866]
[1673395950336,34.87894517,1336.0,1335.9,0.0637866]
[1673395951629,38.67660581,1336.0,1335.9,0.0637866]
[1673395955368,31.19158581,1336.0,1335.9,0.0637866]
[1673395955945,38.67660581,1336.0,1335.9,0.0637866]
[1673395956183,31.19158581,1336.0,1335.9,0.0637866]
[1673395956693,30.4394668,1336.0,1335.9,0.0637866]
[1673395958949,33.56512616,1336.0,1335.9,0.0637866]
[1673395959457,25.60910512,1336.0,1335.9,0.0637866]
[1673395960040,28.9638455,1336.0,1335.9,0.0637866]
[1673395969970,28.9638455,1336.0,1335.9,1.9548342]
[1673395970882,28.9638455,1336.0,1335.9,1.95083858]
[1673395974548,26.40070512,1336.0,1335.9,1.95083858]
[1673395974757,35.83754104,1336.0,1335.9,1.95083858]
[1673395975597,32.4774335,1336.0,1335.9,1.95083858]
[1673395976562,35.83837037,1336.0,1335.9,1.95083858]
[1673395977807,32.4774335,1336.0,1335.9,1.95083858]
[1673395978601,36.27509414,1336.0,1335.9,1.95083858]
[1673395981284,39.63665305,1336.0,1335.9,1.95083858]
[1673395988174,39.07505305,1336.0,1335.9,1.95083858]
[1673395990681,38.93300793,1336.0,1335.9,1.95083858]
[1673395995811,38.93300793,1336.0,1335.9,1.94726849]